bitfinex/quotes_ETHUSD_20250112
["timestamp","ask_amount","ask_price","bid_price","bid_amount"]
[1736681303466,0.0075,3253.8,3253.3,0.80603512]
[1736681303633,0.10531429,3253.4,3253.3,0.80603512]
[1736681303834,0.0075,3253.8,3253.3,0.80603512]
[1736681304171,0.10531429,3253.4,3253.3,0.80603512]
[1736681304627,0.0075,3253.8,3253.3,0.80603512]
[1736681304827,0.10535267,3253.4,3253.3,0.7753]
[1736681305128,0.0075,3253.8,3253.3,0.7753]
[1736681305662,0.0075,3253.6,3253.3,0.7753]
[1736681306051,0.10536547,3253.5,3253.3,0.7753]
[1736681307669,0.10536547,3253.5,3253.3,0.80603464]
[1736681308265,0.10536547,3253.5,3253.3,0.7753]
[1736681308667,0.0075,3253.4,3253.3,0.7753]
[1736681308834,0.11291667,3253.4,3253.3,0.7753]
[1736681315642,0.10541667,3253.4,3253.3,0.80603641]
[1736681315839,0.0225,3253.9,3253.3,0.7753]
[1736681316186,0.10541667,3253.4,3253.3,0.80603486]
[1736681316368,0.0075,3253.8,3253.3,0.80603486]
[1736681316570,0.10537828,3253.4,3253.3,0.80603486]
[1736681316744,0.015,3253.9,3253.3,0.80603486]
[1736681316944,0.10537828,3253.4,3253.3,0.80603486]
[1736681317145,0.015,3253.9,3253.3,0.80603486]
[1736681317380,0.10537828,3253.4,3253.3,0.80603486]
[1736681317677,0.015,3253.9,3253.3,0.80603486]
[1736681317856,0.10537828,3253.4,3253.3,0.80603486]
[1736681318050,0.015,3253.9,3253.3,0.80603486]
[1736681318249,0.10537828,3253.4,3253.3,0.80603486]
[1736681318449,0.015,3253.9,3253.3,0.80603486]
[1736681318650,0.10537828,3253.4,3253.3,0.80603486]
[1736681318861,0.015,3253.9,3253.3,0.80603486]
[1736681319077,0.10537828,3253.4,3253.3,0.80603486]
[1736681319241,0.015,3253.9,3253.3,0.80603486]
[1736681319441,0.10537828,3253.8,3253.3,0.80603486]
[1736681319666,0.0075,3253.7,3253.3,0.7753]
[1736681320037,0.10537828,3253.6,3253.3,0.7753]
[1736681334902,0.10537828,3253.6,3253.3,0.80603381]
[1736681335090,0.10537828,3253.6,3253.3,0.7753]
[1736681346338,0.10537828,3253.6,3253.4,0.03073387]
[1736681346545,0.10537828,3253.6,3253.3,0.7753]
[1736681348204,0.10537828,3253.6,3253.4,0.03073387]
[1736681349495,0.10537828,3253.6,3253.3,0.7753]
[1736681350723,0.10537828,3253.6,3253.4,0.03073388]
[1736681353393,0.10537828,3253.6,3253.5,0.7866]
[1736681353702,0.8133,3254.7,3253.5,0.7866]
[1736681353902,0.10155748,3253.6,3253.5,0.7866]
[1736681354323,0.8133,3254.7,3253.5,0.7866]
[1736681354650,0.10177496,3253.6,3253.5,0.7866]
[1736681354803,0.0075,3254.6,3253.5,0.7866]
[1736681355302,0.10177496,3254.5,3253.5,0.7866]
[1736681356105,0.0075,3254.2,3253.5,0.7866]
[1736681356292,0.0075,3254.2,3253.6,0.03072953]
[1736681356693,0.015,3254.3,3253.6,0.03072953]
[1736681356694,0.0075,3254.0,3253.6,0.03072953]
[1736681357205,0.10196681,3253.9,3253.7,0.7866]
[1736681357400,0.10196681,3253.9,3253.8,0.03072927]
[1736681357586,0.0075,3254.3,3253.8,0.03072927]
[1736681357787,0.10196681,3253.9,3253.8,0.03072927]
[1736681357992,0.0075,3254.3,3253.8,0.03072927]
[1736681358191,0.10196681,3253.9,3253.8,0.03072927]
[1736681358393,0.0075,3254.3,3253.8,0.03072927]
[1736681358607,0.10196681,3253.9,3253.8,0.03072927]
[1736681358831,0.0075,3254.3,3253.8,0.03072927]
[1736681359131,0.0075,3254.3,3253.7,0.7866]
[1736681359536,0.10186449,3254.2,3253.7,0.7866]
[1736681359739,0.10186449,3254.2,3253.8,0.62837055]
[1736681360730,0.0075,3254.1,3253.8,0.62837055]
[1736681361711,0.10190926,3254.0,3253.8,0.62837055]
[1736681368154,0.10190926,3254.0,3253.8,0.65910175]
[1736681368514,0.0075,3254.3,3253.8,0.65910175]
[1736681368720,0.1018694,3253.9,3253.8,0.65910175]
[1736681369052,0.1018694,3253.9,3253.8,0.62837055]
[1736681369245,0.213,3254.4,3253.8,0.62837055]
[1736681369482,0.1018694,3253.9,3253.8,0.62837055]
[1736681369687,0.213,3254.4,3253.8,0.62837055]
[1736681369888,0.1018694,3253.9,3253.8,0.62837055]
[1736681370088,0.213,3254.4,3253.8,0.62837055]
[1736681370601,0.1018694,3254.3,3253.8,0.62837055]
[1736681373609,0.7504,3254.6,3253.9,0.8254]
[1736681373786,0.1019781,3254.2,3253.9,0.8254]
[1736681374106,0.0075,3254.5,3253.9,0.8254]
[1736681374305,0.1019781,3254.1,3253.9,0.8254]
[1736681374505,0.0075,3254.5,3253.9,0.8254]
[1736681374708,0.1019781,3254.0,3253.9,0.8254]
[1736681374909,0.0075,3254.5,3253.9,0.8254]
[1736681375108,0.1019781,3254.0,3253.9,0.8254]
[1736681375309,0.0075,3254.5,3253.9,0.8254]
[1736681375501,0.1019781,3254.0,3253.9,0.8254]
[1736681375879,0.0075,3254.5,3253.9,0.8254]
[1736681376435,0.1019781,3254.4,3253.9,0.8254]
[1736681376776,0.1019781,3254.4,3254.0,0.03072648]
[1736681377097,0.1019781,3254.4,3254.1,0.8321]
[1736681377304,0.1019781,3254.4,3254.2,0.03072631]
[1736681391866,0.1019781,3254.4,3254.1,0.8321]
[1736681401248,0.1019781,3254.4,3254.2,0.03072649]
[1736681401527,0.1019781,3254.4,3254.3,0.8163]
[1736681404382,0.1019781,3254.4,3254.3,0.62485571]
[1736681404578,0.1019781,3254.4,3254.3,1.45765571]
[1736681406483,0.0075,3255.5,3254.4,0.8328]
[1736681408553,0.0075,3255.5,3254.9,0.61107742]
[1736681409247,0.015,3255.1,3254.3,0.8123]
[1736681409453,0.0534035,3255.1,3254.3,0.8123]
[1736681409639,0.0534035,3255.1,3254.7,0.62184774]
[1736681410546,0.0534035,3255.1,3253.3,0.15330761]
[1736681410547,0.7872,3254.8,3254.0,0.8123]
[1736681410867,0.7872,3254.8,3254.1,0.03072433]
[1736681411151,0.7872,3254.8,3254.0,0.8123]
[1736681411356,0.7872,3254.8,3254.4,0.60996962]
[1736681413369,0.0075,3254.7,3254.4,0.60996962]
[1736681413756,0.0075,3254.5,3254.4,0.60996962]
[1736681414566,0.0075,3254.5,3253.7,0.8281]
[1736681414816,0.0075,3254.5,3254.3,0.6281659]
[1736681417481,0.04590959,3254.5,3253.7,0.8281]
[1736681417908,0.0943738,3254.4,3254.2,0.62410369]
[1736681418279,0.7707,3254.3,3253.5,0.8281]
[1736681418484,0.86435038,3254.3,3253.5,0.8281]
[1736681419081,0.86435038,3254.3,3253.9,0.61967219]
[1736681423750,0.0075,3254.2,3253.5,0.8281]
[1736681423894,0.13948064,3254.2,3253.5,0.8281]
[1736681424703,0.13948064,3254.2,3253.7,0.62349381]
[1736681425127,0.10106713,3254.2,3253.7,0.62349381]
[1736681430834,0.0075,3254.0,3253.2,0.8233]
[1736681431233,0.09333018,3253.9,3253.2,0.8233]
[1736681432219,0.8065,3253.8,3253.5,0.6101292]
[1736681432811,0.09333018,3253.7,3253.2,0.8233]
[1736681433452,0.09333018,3253.7,3253.3,0.03073406]
[1736681434835,0.09333018,3253.7,3253.4,0.62201236]
[1736681441924,0.8065,3253.8,3253.4,0.62201236]
[1736681442127,0.09265793,3253.6,3253.4,0.62201236]
[1736681442431,0.09265793,3253.5,3253.4,0.62201236]
[1736681442626,0.8065,3253.8,3253.4,0.62201236]
[1736681443058,0.09265793,3253.7,3253.4,0.62201236]
[1736681446995,0.09265793,3253.7,3253.5,0.82343419]
[1736681447328,0.0075,3254.1,3253.5,0.82343419]
[1736681447529,0.09237608,3253.6,3253.5,0.82343419]
[1736681447749,0.0075,3254.1,3253.5,0.82343419]
[1736681447951,0.09241452,3253.6,3253.5,0.82343419]
[1736681448239,0.0075,3254.1,3253.5,0.82343419]
[1736681448942,0.09245295,3254.0,3253.5,0.82343419]
[1736681450051,0.0075,3254.3,3253.5,0.82343419]
[1736681450252,0.09254262,3253.9,3253.5,0.82343419]
[1736681450570,0.09254262,3253.8,3253.5,0.82343419]
[1736681450770,0.0075,3254.3,3253.5,0.82343419]
[1736681451070,0.09265791,3253.7,3253.5,0.82343419]
[1736681451230,0.0075,3254.3,3253.5,0.82343419]
[1736681451666,0.09265791,3254.2,3253.5,0.7927]
[1736681454681,0.015,3254.1,3253.5,0.7927]
[1736681454972,0.015,3254.1,3253.1,0.7917]
[1736681454973,0.0075,3253.8,3253.1,0.7917]
[1736681455167,0.0075,3253.8,3253.2,0.030733]
[1736681455374,0.09268993,3253.7,3253.2,0.030733]
[1736681456340,0.09268993,3253.7,3253.1,0.7917]
[1736681457477,0.09268993,3253.7,3253.5,0.62076926]
[1736681459147,0.09268993,3253.7,3253.1,0.7917]
[1736681460459,0.0075,3253.8,3253.4,0.6002678]
[1736681460651,0.74477209,3253.9,3253.4,0.6002678]
[1736681460854,0.0075,3253.8,3253.4,0.6002678]
[1736681461071,0.0075,3253.6,3253.4,0.6002678]
[1736681461591,0.08934407,3253.5,3253.4,0.6002678]
[1736681464205,0.08934407,3253.5,3253.1,0.7917]
[1736681466003,0.08934407,3253.5,3253.3,0.60117969]
[1736681467413,0.91524407,3253.5,3253.3,0.60117969]
[1736681469881,0.0075,3253.4,3253.3,0.60117969]
[1736681470070,0.09672234,3253.4,3253.3,0.60117969]
[1736681470609,0.0075,3253.2,3252.0,151.87854284]
[1736681470781,0.7912,3253.1,3252.9,0.61566784]
[1736681471189,0.09672234,3253.0,3252.9,0.61566784]
[1736681472381,0.08922234,3253.0,3252.9,0.61566784]
[1736681472717,0.7912,3253.3,3252.9,0.61566784]
[1736681472921,0.08922234,3253.0,3252.9,0.61566784]
[1736681473132,0.7912,3253.3,3252.9,0.61566784]
[1736681473279,0.08922234,3253.0,3252.9,0.61566784]
[1736681473484,0.7912,3253.3,3252.9,0.61566784]
[1736681473685,0.08922234,3253.2,3252.9,0.61566784]
[1736681474117,0.0075,3253.2,3252.9,0.61566784]
[1736681474310,0.08922234,3253.1,3252.9,0.61566784]
[1736681474705,0.015,3253.0,3252.4,0.03073974]
[1736681474893,0.015,3253.0,3252.4,0.75913589]
[1736681475283,0.015,3253.0,3252.4,0.72839615]
[1736681475718,0.015,3253.0,3252.5,0.03074181]
[1736681476536,0.015,3253.0,3252.8,0.6309995]
[1736681476722,0.08862009,3252.9,3252.8,0.6309995]
[1736681478698,0.87982009,3252.9,3252.8,0.6309995]
[1736681481729,0.87982009,3252.9,3252.3,4.11847471]
[1736681481928,0.7912,3252.9,3252.4,0.72532218]
[1736681482330,0.7912,3252.9,3252.3,4.11847471]
[1736681482500,0.7912,3252.9,3252.4,0.03074307]
[1736681483127,0.7912,3252.9,3252.7,0.62757125]
[1736681485601,0.7912,3252.9,3252.4,0.03074318]
[1736681486245,0.7912,3252.9,3252.6,0.61803669]
[1736681486906,0.0075,3252.8,3252.1,3.0]
[1736681487145,0.0075,3252.8,3252.2,3.1347471]
[1736681487607,0.0225,3252.8,3252.2,3.1347471]
[1736681487802,0.0225,3252.8,3252.3,0.03074367]
[1736681488649,0.0225,3252.8,3252.5,0.60060725]
[1736681488816,0.7761,3253.2,3252.5,1.35450725]
[1736681489223,0.03,3253.1,3252.5,1.35450725]
[1736681490218,0.0225,3253.1,3252.6,0.03074173]
[1736681491047,0.06092647,3253.1,3252.5,1.35450725]
[1736681491244,0.0225,3253.1,3252.5,0.60060725]
[1736681491434,0.0609265,3253.1,3252.5,0.60060725]
[1736681492440,0.06092651,3253.1,3252.5,0.60060725]
[1736681492646,0.0609265,3253.1,3252.5,0.60060725]
[1736681492834,0.0225,3253.1,3252.5,0.60060725]
[1736681493034,0.06092648,3253.1,3252.5,0.60060725]
[1736681493249,0.0225,3253.1,3252.6,0.03074121]
[1736681493612,0.7836,3253.5,3252.7,0.7539]
[1736681493916,0.7761,3253.5,3252.8,0.03073876]
[1736681494122,0.07951947,3253.4,3252.8,0.03073876]
[1736681494713,0.07951947,3253.4,3252.8,0.0307363]
[1736681494925,0.07951947,3253.4,3252.7,0.7539]
[1736681495137,0.7761,3253.5,3252.7,0.7539]
[1736681495333,0.015,3253.4,3252.7,0.7539]
[1736681495911,0.0075,3253.3,3252.7,0.7539]
[1736681496116,0.0075,3253.2,3252.5,1.35450725]
[1736681496318,0.7761,3253.1,3252.6,0.03073954]
[1736681496853,0.0075,3253.2,3252.6,0.03073954]
[1736681497238,0.7761,3253.3,3252.6,0.03073954]
[1736681498049,0.8061,3253.7,3252.7,0.7539]
[1736681498251,1.43901,3253.7,3252.8,0.03073759]
[1736681498618,0.015,3253.5,3252.8,0.03073759]
[1736681498818,0.015,3253.5,3253.0,0.62714765]
[1736681499222,0.07969277,3253.4,3253.0,0.62714765]
[1736681503974,0.7723,3253.3,3253.0,0.62714765]
[1736681504153,0.07973767,3253.2,3253.0,0.62714765]
[1736681504357,0.7723,3253.3,3252.7,0.7539]
[1736681504545,0.7723,3253.3,3252.8,0.03073761]
[1736681504745,0.07973767,3253.2,3252.7,0.7539]
[1736681504961,0.7723,3253.3,3252.9,0.60501748]
[1736681505142,0.07973767,3253.1,3252.9,0.60501748]
[1736681505342,0.7723,3253.3,3252.9,0.60501748]
[1736681505343,0.7723,3253.3,3253.0,0.0307374]
[1736681505655,0.07973767,3253.0,3252.9,0.60501748]
[1736681506186,0.7873,3253.6,3252.9,0.60501748]
[1736681506379,0.07973767,3253.0,3252.9,0.60501748]
[1736681506582,0.7873,3253.6,3252.9,0.60501748]
[1736681506745,0.07973767,3253.5,3252.9,0.60501748]
[1736681507782,0.11815917,3253.5,3252.9,0.60501748]
[1736681508078,0.11815922,3253.5,3252.9,0.60501748]
[1736681508879,0.11815923,3253.5,3252.9,0.60501748]
[1736681509878,0.07973767,3253.5,3253.0,0.03073727]
[1736681510086,0.07973767,3253.5,3252.9,0.60501748]
[1736681510385,0.07973767,3253.5,3253.0,0.03073726]
[1736681510542,0.07973767,3253.5,3253.0,0.03073729]
[1736681510749,0.11815927,3253.5,3252.9,0.60501748]
[1736681511268,0.07973767,3253.5,3252.9,0.60501748]
[1736681511587,0.07973767,3253.5,3253.0,0.03073728]
[1736681511785,0.11815931,3253.5,3252.9,0.60501748]
[1736681512082,0.1181593,3253.5,3252.9,0.60501748]
[1736681512297,0.11815932,3253.5,3252.9,0.60501748]
[1736681512461,0.8065,3253.4,3253.0,0.0307373]
[1736681512659,0.04592237,3253.3,3252.9,0.60501748]
[1736681512849,0.0075,3253.3,3252.9,0.60501748]
[1736681513046,0.07973767,3253.2,3252.9,0.60501748]
[1736681513484,0.8065,3253.4,3252.9,0.60501748]
[1736681513676,0.07973767,3253.1,3252.9,0.60501748]
[1736681513990,0.07973767,3253.0,3252.9,0.60501748]
[1736681514164,0.8065,3253.4,3252.9,0.60501748]
[1736681514359,0.07986604,3253.3,3252.9,0.60501748]
[1736681514565,0.00930978,3253.3,3252.9,0.60501748]
[1736681514768,0.07751417,3253.3,3252.9,0.60501748]
[1736681520292,0.07751417,3253.3,3253.0,0.0307367]
[1736681520982,0.015,3253.6,3253.1,0.8295]
[1736681521299,0.07748208,3253.5,3253.1,0.8295]
[1736681521893,0.07748208,3253.5,3253.2,0.03073648]
[1736681522210,1.93573429,3253.9,3253.3,0.8295]
[1736681522373,0.07764892,3253.8,3253.4,0.03073283]
[1736681523086,0.015,3254.0,3253.4,0.03073283]
[1736681523267,0.07766175,3253.7,3253.4,0.03073283]
[1736681523470,0.015,3254.0,3253.4,0.03073283]
[1736681523676,0.07766175,3253.6,3253.4,0.03073283]
[1736681523875,0.015,3254.0,3253.4,0.03073283]
[1736681524070,0.07766175,3253.5,3253.4,0.03073283]
[1736681524276,0.015,3254.0,3253.4,0.03073283]
[1736681524475,0.07766175,3253.5,3253.4,0.64579441]
[1736681524995,0.07766175,3253.5,3253.4,0.61506158]
[1736681526001,0.8103,3254.1,3253.4,0.61506158]
[1736681526213,0.07766175,3254.0,3253.4,0.61506158]
[1736681527013,0.015,3253.9,3253.4,0.61506158]
[1736681527164,0.90720822,3253.8,3253.4,0.61506158]
[1736681529875,0.07800822,3253.8,3253.4,0.61506158]
[1736681531382,0.7611,3254.0,3253.5,0.7915]
[1736681531583,0.07800822,3253.9,3253.5,0.7915]
[1736681533083,0.07800822,3253.9,3253.4,0.61506158]
[1736681533084,0.015,3253.8,3253.4,0.61506158]
[1736681533383,0.07766822,3253.7,3253.4,0.61506158]
[1736681541228,0.8429,3253.6,3253.4,0.61506158]
[1736681541703,0.07753349,3253.5,3252.9,0.784]
[1736681542090,0.11595627,3253.5,3253.2,0.61067338]
[1736681542362,0.11595627,3253.5,3252.9,0.784]
[1736681543206,0.11595627,3253.5,3252.6,0.8072]
[1736681543388,0.03842278,3253.5,3252.6,0.8072]
[1736681545426,0.78,3253.3,3252.6,0.8072]
[1736681545631,0.04592584,3253.2,3252.6,0.8072]
[1736681546634,0.0075,3253.1,3252.6,0.8072]
[1736681546857,0.0075,3253.1,3252.2,0.8072]
[1736681546999,0.0075,3252.8,3252.3,3.03074387]
[1736681548301,0.0075,3252.8,3252.6,0.60249273]
[1736681558445,0.0075,3252.8,3252.3,3.0]
[1736681560483,0.0075,3252.8,3252.5,0.60398529]
[1736681564353,0.0075,3252.7,3252.5,0.60398529]
[1736681567189,0.755,3252.6,3252.5,0.60398529]
[1736681567390,0.755,3252.6,3252.1,3.03074549]
[1736681567594,0.755,3252.6,3252.2,3.1347471]
[1736681568399,0.755,3252.6,3252.4,0.61704177]
[1736681574030,0.755,3252.6,3252.2,3.1347471]
[1736681576197,0.755,3252.6,3252.3,0.61138705]
[1736681581354,0.0075,3252.7,3252.3,0.61138705]
[1736681581511,0.0075,3252.7,3252.3,1.28600046]
[1736681582347,0.8054,3253.3,3252.3,2.09144604]
[1736681582643,0.215,3253.2,3252.3,2.09144604]
[1736681582957,0.25342774,3253.2,3252.3,2.06070046]
[1736681583619,0.0225,3253.1,3252.3,2.06070046]
[1736681583951,0.0225,3253.1,3252.4,0.51954476]
[1736681587756,0.0225,3253.1,3252.5,0.807]
[1736681587937,0.0225,3253.1,3252.5,0.83774226]
[1736681592063,0.0225,3253.1,3252.5,0.807]
[1736681593736,0.8219,3253.0,3252.5,0.807]
[1736681594039,0.03842892,3252.9,3252.5,0.807]
[1736681595303,0.03842892,3252.9,3252.3,3.61138705]
[1736681596006,0.03842892,3252.9,3252.3,4.36362047]
[1736681598930,0.8219,3253.0,3252.4,0.03074318]
[1736681599417,0.03842897,3252.9,3252.3,4.36362047]
[1736681600482,0.8219,3253.0,3252.4,0.03074319]
[1736681600719,0.8219,3253.0,3252.3,4.36362047]
[1736681600901,0.038429,3252.9,3252.3,4.36362047]
[1736681602220,0.038429,3252.9,3252.3,3.61138705]
[1736681602545,0.015,3252.8,3252.3,0.61138705]
[1736681602725,0.8219,3252.7,3252.3,0.61138705]
[1736681602898,0.03843221,3252.6,3252.3,0.61138705]
[1736681604899,0.8219,3252.7,3252.3,0.61138705]
[1736681609934,0.015,3252.8,3252.3,0.61138705]
[1736681610135,0.015,3252.8,3252.3,1.05789034]
[1736681614054,0.9911,3253.1,3252.4,0.030746]
[1736681614237,0.9911,3253.1,3252.5,0.8229]
[1736681614555,0.214,3253.1,3252.5,0.8229]
[1736681622660,0.214,3253.1,3252.5,1.42446487]
[1736681624164,0.7876,3252.9,3252.5,0.60156487]
[1736681624360,0.03843006,3252.8,3252.5,0.60156487]
[1736681628262,0.015,3252.7,3252.1,3.7753]
[1736681628455,0.813,3252.6,3252.1,3.7753]
[1736681629627,0.813,3252.6,3252.4,0.62595852]
[1736681631567,0.828,3252.8,3252.4,0.62595852]
[1736681633545,0.03843277,3252.7,3252.4,0.62595852]
[1736681634071,0.03843282,3252.7,3252.4,0.62595852]
[1736681635860,0.828,3252.8,3252.4,0.62595852]
[1736681636861,0.03843287,3252.7,3252.4,0.62595852]
[1736681639770,0.0075,3252.6,3252.4,0.62595852]
[1736681640554,0.015,3252.7,3252.4,0.62595852]
[1736681642183,0.05343367,3252.7,3252.4,0.62595852]
[1736681643042,0.8205,3252.8,3252.4,0.62595852]
[1736681643742,1.93708336,3253.0,3252.5,0.8145]
[1736681644559,0.0075,3253.0,3252.5,0.8145]
[1736681645183,0.015,3253.0,3252.5,0.8145]
[1736681645488,0.8156,3253.1,3252.5,0.8145]
[1736681645875,0.015,3253.0,3252.5,0.8145]
[1736681647781,0.015,3252.8,3252.4,0.62595852]
[1736681647984,0.8156,3253.1,3252.4,0.62595852]
[1736681648361,0.015,3253.0,3252.4,0.62595852]
[1736681649410,0.03,3253.2,3252.5,0.7923]
[1736681649753,1.93708336,3253.3,3252.7,0.7923]
[1736681650605,0.0075,3253.4,3252.7,0.7923]
[1736681651571,0.03,3253.4,3252.7,0.7923]
[1736681652001,0.32571834,3253.4,3252.7,0.7923]
[1736681654200,0.03,3253.2,3252.7,0.7923]
[1736681654775,0.03,3253.2,3252.4,0.62595852]
[1736681654980,0.03,3253.2,3252.4,1.41825852]
[1736681655179,0.015,3252.8,3252.4,1.41825852]
[1736681655414,0.0075,3252.8,3252.4,0.62595852]
[1736681655913,0.0075,3252.9,3252.4,0.62595852]
[1736681659990,1.95208336,3253.0,3252.5,0.7923]
[1736681660192,1.94458336,3253.0,3252.5,0.7923]
[1736681660812,0.0075,3253.0,3252.5,0.7923]
[1736681661119,1.93708336,3253.1,3252.5,0.7923]
[1736681661487,7.24708336,3253.2,3252.5,0.7923]
[1736681661926,1.93708336,3253.2,3252.5,0.7923]
[1736681662225,1.93708336,3253.2,3252.5,0.82304178]
[1736681662423,0.213,3253.3,3252.5,0.7923]
[1736681666637,0.03,3253.2,3252.5,0.7923]
[1736681667233,0.0225,3253.0,3252.5,0.7923]
[1736681679113,0.0225,3253.0,3252.4,0.62595852]
[1736681679318,0.8092,3252.9,3252.4,0.62595852]
[1736681683147,1.95958336,3253.0,3252.4,0.62595852]
[1736681684155,0.0225,3253.0,3252.4,0.62595852]
[1736681685652,1.95958336,3253.0,3252.4,0.62595852]
[1736681686355,0.0225,3253.0,3252.4,0.62595852]
[1736681687353,1.95958336,3253.0,3252.4,0.62595852]
[1736681688057,0.0225,3253.0,3252.4,0.62595852]
[1736681690874,0.0225,3253.0,3252.5,0.832]
[1736681693101,0.015,3253.0,3252.5,0.832]
[1736681698783,1.95208336,3253.0,3252.5,0.832]
[1736681700079,0.015,3253.0,3252.5,0.832]
[1736681706690,1.29161913,3252.9,3252.5,0.832]
[1736681707887,0.015,3252.8,3252.5,0.832]
[1736681708086,0.015,3252.8,3252.4,0.62595852]
[1736681708452,0.015,3252.8,3252.2,0.8233]
[1736681708997,0.015,3252.8,3252.3,0.62166623]
[1736681709152,0.0075,3252.6,3252.3,0.62166623]
[1736681709920,0.0075,3252.6,3252.2,0.8233]
[1736681710405,1.93708336,3252.7,3252.3,0.8233]
[1736681710761,1.93708336,3252.9,3252.3,0.8233]
[1736681711590,0.0075,3252.9,3252.3,0.8233]
[1736681712300,0.015,3253.0,3252.3,0.8233]
[1736681712989,1.95208336,3253.0,3252.3,0.8233]
[1736681713494,0.015,3253.0,3252.3,0.8233]
[1736681718191,0.015,3253.0,3252.4,0.8233]
[1736681719390,1.93708336,3253.1,3252.4,0.8540445]
[1736681719816,1.93708336,3253.2,3252.4,0.8540445]
[1736681720026,1.93708336,3253.2,3252.4,0.8233]
[1736681720744,5.31,3253.3,3252.4,0.8233]
[1736681721344,1.93708336,3253.3,3252.8,0.60485112]
[1736681721650,0.071916,3253.2,3252.9,0.8233]
[1736681722005,1.93708336,3253.3,3252.9,0.8233]
[1736681722205,0.071916,3253.2,3252.9,0.8233]
[1736681722400,1.93708336,3253.3,3252.9,0.8233]
[1736681722650,2.00899936,3253.2,3252.9,0.8233]
[1736681722959,2.00899936,3253.2,3252.6,0.6199416]
[1736681723306,1.93708336,3253.2,3252.7,0.7859]
[1736681723717,0.015,3253.1,3252.7,0.7859]
[1736681725122,1.95208336,3253.1,3252.7,0.7859]
[1736681728130,0.015,3253.1,3252.7,0.7859]
[1736681732770,1.93708336,3253.2,3252.7,0.7859]
[1736681737675,0.0075,3253.1,3252.7,0.7859]
[1736681737891,0.015,3253.1,3252.7,0.7859]
[1736681738098,0.31173834,3253.1,3252.6,0.6199416]
[1736681739106,2.2488217,3253.1,3252.6,0.6199416]
[1736681739278,0.015,3252.9,3252.6,0.6199416]
[1736681741289,1.93708336,3253.1,3252.7,0.7599]
[1736681741882,0.015,3253.1,3252.7,0.7599]
[1736681744505,1.93708336,3253.2,3252.7,0.7599]
[1736681745428,1.29192896,3253.1,3252.7,0.7599]
[1736681746837,1.29192896,3253.1,3252.7,0.75626086]
[1736681750718,1.29192896,3253.2,3252.7,0.75626086]
[1736681751443,1.29192896,3253.4,3252.8,0.80164066]
[1736681751801,0.17781035,3253.3,3252.8,0.80164066]
[1736681752297,1.29192896,3253.7,3252.8,0.7709]
[1736681752545,0.17794552,3253.2,3252.8,0.7709]
[1736681752836,1.29192896,3253.7,3253.0,0.7709]
[1736681753043,0.17794552,3253.1,3253.0,0.7709]
[1736681753219,1.93708336,3254.3,3253.3,0.7709]
[1736681753542,0.17794552,3254.2,3253.3,0.7709]
[1736681756145,0.015,3254.1,3253.5,0.6006091]
[1736681756441,0.015,3254.1,3253.3,0.7709]
[1736681756442,0.03,3253.9,3253.3,0.7709]
[1736681756656,0.03,3253.9,3253.4,0.62659936]
[1736681756808,0.015,3253.7,3253.4,0.62659936]
[1736681757348,0.17826725,3253.6,3253.4,0.62659936]
[1736681763184,0.0075,3253.9,3253.4,0.62659936]
[1736681763389,0.17810725,3253.5,3253.4,0.62659936]
[1736681763543,0.0075,3253.9,3253.4,0.62659936]
[1736681763745,0.17810725,3253.5,3253.4,0.62659936]
[1736681763947,0.015,3254.0,3253.4,0.62659936]
[1736681764145,0.17810725,3253.5,3253.4,0.62659936]
[1736681764340,0.015,3254.0,3253.4,0.62659936]
[1736681764546,0.17849339,3253.5,3253.4,0.62659936]
[1736681764782,0.015,3254.0,3253.4,0.62659936]
[1736681764984,0.17849339,3253.5,3253.4,0.62659936]
[1736681765184,0.015,3254.0,3253.4,0.62659936]
[1736681765358,0.17849339,3253.5,3253.4,0.62659936]
[1736681765555,0.015,3254.0,3253.4,0.62659936]
[1736681765885,0.17849339,3253.5,3253.4,0.62659936]
[1736681766083,0.17849339,3253.9,3253.4,0.62659936]
[1736681766380,0.015,3254.0,3253.4,0.62659936]
[1736681766585,0.17849339,3253.8,3253.4,0.62659936]
[1736681766786,0.64536,3254.0,3253.4,0.62659936]
[1736681766950,0.17849339,3253.7,3253.4,0.62659936]
[1736681767151,0.015,3254.0,3253.4,0.62659936]
[1736681767374,0.17849339,3253.6,3253.4,0.62659936]
[1736681767573,0.7656,3253.9,3253.4,0.62659936]
[1736681767748,0.17849339,3253.5,3253.4,0.62659936]
[1736681767962,0.015,3253.8,3252.6,0.8231]
[1736681769484,0.015,3253.8,3253.3,0.60862068]
[1736681769995,0.17849339,3253.7,3253.3,0.60862068]
[1736681774692,0.17849339,3253.7,3253.4,0.8119]
[1736681775056,0.17754849,3253.6,3253.4,0.8119]
[1736681775520,0.17754849,3253.5,3253.4,0.8119]
[1736681775998,0.7695,3254.1,3253.4,0.8119]
[1736681776198,0.17754849,3253.5,3253.4,0.8119]
[1736681776399,0.7695,3254.1,3253.4,0.8119]
[1736681776899,0.17754849,3254.0,3253.4,0.8119]
[1736681779887,1.93708336,3254.5,3253.4,0.84263352]
[1736681780187,0.17158813,3254.4,3253.4,0.84262933]
[1736681780843,0.17158813,3254.4,3253.4,0.8119]
[1736681781995,0.17158813,3254.4,3253.5,0.03072833]
[1736681782200,0.17158813,3254.4,3253.6,0.8119]
[1736681782396,0.17158813,3254.4,3253.4,0.15020945]
[1736681782397,0.015,3254.7,3253.8,0.8119]
[1736681782615,0.17207845,3254.3,3253.8,0.8119]
[1736681782818,0.015,3254.7,3254.0,0.8119]
[1736681783035,0.17207845,3254.2,3254.0,0.8119]
[1736681783235,0.015,3254.7,3254.0,0.8119]
[1736681783438,0.17207845,3254.1,3254.0,0.8119]
[1736681783749,0.17212359,3254.1,3254.0,0.8119]
[1736681784048,0.0225,3254.8,3254.0,0.8119]
[1736681784235,0.17216874,3254.1,3254.0,0.8119]
[1736681784411,0.0225,3254.8,3254.0,1.42629477]
[1736681784950,0.0075,3254.6,3254.0,0.8119]
[1736681785315,0.1722139,3254.5,3254.0,0.8119]
[1736681787722,1.0047139,3254.5,3254.0,0.8119]
[1736681789450,0.1722139,3254.5,3254.0,0.8119]
[1736681790363,0.7841,3254.5,3254.0,0.8119]
[1736681790600,0.17221391,3254.4,3254.0,0.8119]